fUSD/lending_fUSD_20240301
["ID","MTS","AMOUNT","RATE_DAILY","PERIOD"]
[316004784,1709323843002,-500.0,0.00021917,2]
[316004787,1709323843012,-500.0,0.00021917,2]
[316004789,1709323843022,-500.0,0.00021917,2]
[316004791,1709323843032,-965.26,0.00021917,2]
[316004793,1709323843041,-500.0,0.00021917,2]
[316004795,1709323843051,-500.0,0.00021917,2]
[316004798,1709323843061,-500.0,0.00021917,2]
[316004800,1709323843070,-500.0,0.00021917,2]
[316004803,1709323843080,-500.0,0.00021917,2]
[316004805,1709323843090,-500.0,0.00021917,2]
[316004806,1709323843100,-605.77,0.00021917,2]
[316004807,1709323843109,-500.0,0.00021917,2]
[316004808,1709323843119,-2931.93,0.00021917,2]
[316004810,1709323843128,-532.99404657,0.00021917,2]
[316004811,1709323843138,-646.09,0.00021917,2]
[316004812,1709323843147,-500.0,0.00021917,2]
[316004813,1709323843156,-500.0,0.00021917,2]
[316004814,1709323843165,-500.0,0.00021917,2]
[316004815,1709323843175,-500.0,0.00021917,2]
[316004816,1709323843185,-500.0,0.00021917,2]
[316004817,1709323843194,-500.0,0.00021917,2]
[316004818,1709323843204,-6411.54,0.00021917,2]
[316004819,1709323843213,-500.0,0.00021917,2]
[316004820,1709323843223,-500.0,0.00021917,2]
[316004821,1709323843233,-1805.15,0.00021917,2]
[316004822,1709323843242,-587.03,0.00021917,2]
[316004823,1709323843251,-849.86,0.00021917,2]
[316004824,1709323843260,-1498.84,0.00021917,2]
[316004825,1709323843269,-621.83,0.00021917,2]
[316004826,1709323843278,-500.0,0.00021917,2]
[316004827,1709323843288,-11542.81,0.00021917,2]
[316004828,1709323843297,-500.0,0.00021917,2]
[316004829,1709323843307,-660.97,0.00021917,2]
[316004830,1709323843316,-500.0,0.00021917,2]
[316004831,1709323843326,-525.42,0.00021917,2]
[316004832,1709323843335,-1220.78,0.00021917,2]
[316004833,1709323843345,-500.0,0.00021917,2]
[316004834,1709323843355,-5230.42,0.00021917,2]
[316004835,1709323843364,-1567.33,0.00021917,2]
[316004836,1709323843374,-928.56,0.00021917,2]
[316004837,1709323843385,-500.0,0.00021917,2]
[316004838,1709323843394,-6803.33,0.00021917,2]
[316004839,1709323843404,-1315.36,0.00021917,2]
[316004840,1709323843414,-500.0,0.00021917,2]
[316004841,1709323843423,-1098.94,0.00021917,2]
[316004842,1709323843433,-500.0,0.00021917,2]
[316004843,1709323843443,-500.0,0.00021917,2]
[316004844,1709323843452,-752.81,0.00021917,2]
[316004845,1709323843462,-500.0,0.00021917,2]
[316004846,1709323843471,-500.0,0.00021917,2]
[316004847,1709323843481,-500.0,0.00021917,2]
[316004848,1709323843491,-1244.11,0.00021917,2]
[316004849,1709323843500,-1915.79,0.00021917,2]
[316004850,1709323843510,-1905.39,0.00021917,2]
[316004851,1709323843519,-500.0,0.00021917,2]
[316004853,1709323843529,-1197.72,0.00021917,2]
[316004855,1709323843538,-844.94,0.00021917,2]
[316004857,1709323843548,-500.0,0.00021917,2]
[316004858,1709323843557,-500.0,0.00021917,2]
[316004859,1709323843566,-500.0,0.00021917,2]
[316004860,1709323843575,-500.0,0.00021917,2]
[316004862,1709323843585,-500.0,0.00021917,2]
[316004864,1709323843596,-500.0,0.00021917,2]
[316004866,1709323843605,-500.0,0.00021917,2]
[316004868,1709323843618,-9598.76,0.00021917,2]
[316004870,1709323843627,-500.0,0.00021917,2]
[316004872,1709323843636,-500.0,0.00021917,2]
[316004874,1709323843645,-5566.13,0.00021917,2]
[316004876,1709323843656,-3238.46,0.00021917,2]
[316004878,1709323843665,-500.0,0.00021917,2]
[316004880,1709323843674,-500.0,0.00021917,2]
[316004882,1709323843683,-625.01,0.00021917,2]
[316004884,1709323843693,-2107.74,0.00021917,2]
[316004886,1709323843703,-500.0,0.00021917,2]
[316004888,1709323843713,-752.31,0.00021917,2]
[316004890,1709323843722,-3096.5,0.00021917,2]
[316004892,1709323843731,-500.0,0.00021917,2]
[316004894,1709323843740,-500.0,0.00021917,2]
[316004896,1709323843749,-500.0,0.00021917,2]
[316004898,1709323843759,-1267.67,0.00021917,2]
[316004900,1709323843769,-1108.88,0.00021917,2]
[316004902,1709323843778,-1239.93,0.00021917,2]
[316004904,1709323843788,-500.0,0.00021917,2]
[316004906,1709323843798,-500.0,0.00021917,2]
[316004908,1709323843807,-2367.72,0.00021917,2]
[316004910,1709323843817,-502.37603252,0.00021917,2]
[316004912,1709323843826,-500.0,0.00021917,2]
[316004914,1709323843836,-500.0,0.00021917,2]
[316004916,1709323843845,-1572.31,0.00021917,2]
[316004918,1709323843855,-500.0,0.00021917,2]
[316004920,1709323843864,-500.0,0.00021917,2]
[316004922,1709323843873,-851.32,0.00021917,2]
[316004924,1709323843883,-7933.58,0.00021917,2]
[316004926,1709323843893,-1340.26,0.00021917,2]
[316004928,1709323843902,-500.0,0.00021917,2]
[316004930,1709323843911,-500.0,0.00021917,2]
[316004932,1709323843921,-500.0,0.00021917,2]
[316004934,1709323843932,-809.21,0.00021917,2]
[316004936,1709323843942,-815.73,0.00021917,2]
[316004938,1709323843952,-1131.25,0.00021917,2]
[316004940,1709323843961,-6260.63,0.00021917,2]
[316004942,1709323843970,-500.0,0.00021917,2]
[316004963,1709323844132,-500.0,0.00021917,2]
[316004965,1709323844162,-500.0,0.00021917,2]
[316004967,1709323844173,-500.0,0.00021917,2]
[316004969,1709323844182,-743.1,0.00021917,2]
[316004971,1709323844191,-4121.89,0.00021917,2]
[316004973,1709323844201,-500.0,0.00021917,2]
[316004975,1709323844210,-505.30752203,0.00021917,2]
[316004977,1709323844219,-181.59909517,0.00021917,2]
[316004979,1709323844228,-2061.75,0.00021917,2]
[316004981,1709323844238,-708.56,0.00021917,2]
[316004983,1709323844247,-2921.2,0.00021917,2]
[316004985,1709323844258,-503.15673638,0.00021917,2]
[316004987,1709323844267,-4170.86,0.00021917,2]
[316004989,1709323844276,-595.18,0.00021917,2]
[316004991,1709323844285,-11562.7,0.00021917,2]
[316004993,1709323844295,-500.0,0.00021917,2]
[316004995,1709323844304,-1585.35,0.00021917,2]
[316004997,1709323844313,-500.0,0.00021917,2]
[316004999,1709323844322,-500.0,0.00021917,2]
[316005001,1709323844331,-2561.19,0.00021917,2]
[316005003,1709323844341,-500.0,0.00021917,2]
[316005005,1709323844351,-544.62060648,0.00021917,2]
[316005007,1709323844360,-500.0,0.00021917,2]
[316005009,1709323844369,-500.0,0.00021917,2]
[316005011,1709323844379,-500.0,0.00021917,2]
[316005013,1709323844388,-503.36064831,0.00021917,2]
[316005015,1709323844397,-500.0,0.00021917,2]
[316005017,1709323844406,-500.0,0.00021917,2]
[316005019,1709323844415,-1970.12,0.00021917,2]
[316005021,1709323844424,-500.0,0.00021917,2]
[316005023,1709323844434,-258.82180991,0.00021917,2]
[316005025,1709323844444,-500.0,0.00021917,2]
[316005027,1709323844453,-5848.44,0.00021917,2]
[316005029,1709323844462,-500.0,0.00021917,2]
[316005030,1709323844472,-500.0,0.00021917,2]
[316005031,1709323844482,-1240.56,0.00021917,2]
[316005032,1709323844491,-2771.68,0.00021917,2]
[316005033,1709323844501,-500.0,0.00021917,2]
[316005034,1709323844511,-500.0,0.00021917,2]
[316005035,1709323844521,-785.79,0.00021917,2]
[316005036,1709323844530,-500.0,0.00021917,2]
[316005037,1709323844541,-512.01,0.00021917,2]
[316005038,1709323844550,-3049.61,0.00021917,2]
[316005039,1709323844559,-503.46327748,0.00021917,2]
[316005040,1709323844569,-2400.0,0.00021918,2]
[316005041,1709323844578,-154.0,0.00021918,2]
[316005042,1709323844588,-238.866837,0.00021918,2]
[316005043,1709323844601,-238.866837,0.00021918,2]
[316005044,1709323844610,-151.0,0.00021918,2]
[316005045,1709323844619,-151.0,0.00021918,2]
[316005046,1709323844628,-151.0,0.00021918,2]
[316005047,1709323844638,-151.0,0.00021918,2]
[316005048,1709323844649,-195.28213,0.00021918,2]
[316005049,1709323844658,-195.28213,0.00021918,2]
[316005050,1709323844668,-151.0,0.00021918,2]
[316005051,1709323844679,-151.0,0.00021918,2]
[316005052,1709323844689,-151.0,0.00021918,2]
[316005053,1709323844699,-151.0,0.00021918,2]
[316005054,1709323844708,-151.0,0.00021918,2]
[316005055,1709323844719,-151.0,0.00021918,2]
[316005056,1709323844728,-151.0,0.00021918,2]
[316005057,1709323844738,-500.0,0.00021918,2]
[316005058,1709323844747,-151.0,0.00021918,2]
[316005059,1709323844757,-151.0,0.00021918,2]
[316005060,1709323844766,-154.0,0.00021921,2]
[316005061,1709323844776,-356.0,0.00021921,2]
[316005062,1709323844785,-9685.21894194,0.00021927,2]
[316005063,1709323844794,-283.0,0.0002193,2]
[316005064,1709323844803,-153.23,0.00021931,2]
[316005065,1709323844813,-279.07,0.00021931,2]
[316005066,1709323844822,-150.0,0.0002198,2]
[316005067,1709323844832,-150.0,0.00021981,2]
[316005068,1709323844841,-14723.0,0.0002199,2]
[316005069,1709323844853,-151.0,0.0002199,2]
[316005070,1709323844862,-156.57,0.00021998,2]
[316005071,1709323844872,-296.959647,0.00022,23]
[316005072,1709323844881,-1296.0,0.00022,2]
[316005073,1709323844892,-3266.94795517,0.00022,2]
[316005074,1709323844901,-1296.0,0.00022,2]
[316005075,1709323844910,-600.0,0.00022,3]
[316005076,1709323844920,-150.0,0.00022004,2]
[316005077,1709323844929,-151.33,0.00022004,2]
[316005078,1709323844939,-17611.79336397,0.00022026,2]
[316005079,1709323844948,-151.0,0.00022026,7]
[316005080,1709323844958,-151.0,0.00022026,7]
[316005081,1709323844969,-500.0,0.00022026,2]
[316005082,1709323844978,-943.13,0.00022026,2]
[316005083,1709323844988,-943.13,0.00022026,2]
[316005084,1709323844997,-209.80548111,0.00022026,2]
[316005085,1709323845007,-500.0,0.00022027,2]
[316005086,1709323845017,-500.0,0.00022027,2]
[316005087,1709323845027,-500.0,0.00022027,2]
[316005088,1709323845037,-500.0,0.00022027,2]
[316005089,1709323845046,-500.0,0.00022027,2]
[316005090,1709323845056,-500.0,0.00022027,2]
[316005091,1709323845066,-500.0,0.00022027,2]
[316005092,1709323845075,-476.66516154,0.00022027,2]
[316005093,1709323845084,-500.0,0.00022027,2]
[316005094,1709323845094,-500.0,0.00022027,2]
[316005095,1709323845106,-500.0,0.00022027,2]
[316005096,1709323845115,-500.0,0.00022027,2]
[316005097,1709323845124,-500.0,0.00022027,2]
[316005098,1709323845134,-500.0,0.00022027,2]
[316005099,1709323845143,-500.0,0.00022027,2]
[316005100,1709323845153,-500.0,0.00022027,2]
[316005101,1709323845163,-500.0,0.00022027,2]
[316005102,1709323845173,-620.95785598,0.00022027,2]
[316005103,1709323845183,-500.0,0.00022027,2]
[316005104,1709323845193,-500.0,0.00022027,2]
[316005105,1709323845202,-500.0,0.00022027,2]
[316005106,1709323845212,-500.0,0.00022027,2]
[316005107,1709323845221,-500.0,0.00022027,2]
[316005108,1709323845231,-500.0,0.00022027,2]
[316005109,1709323845241,-500.0,0.00022027,2]
[316005110,1709323845250,-500.0,0.00022027,2]
[316005111,1709323845259,-500.0,0.00022027,2]
[316005112,1709323845268,-500.0,0.00022027,2]
[316005113,1709323845277,-500.0,0.00022027,2]
[316005114,1709323845287,-500.0,0.00022027,2]
[316005115,1709323845297,-500.0,0.00022027,2]
[316005116,1709323845306,-503.51910402,0.00022027,2]
[316005117,1709323845316,-500.0,0.00022027,2]
[316005118,1709323845325,-195.35472815,0.00022027,2]
[316005119,1709323845334,-570.48,0.00022027,2]
[316005120,1709323845343,-594.76,0.00022027,2]
[316005121,1709323845355,-500.0,0.00022027,2]
[316005122,1709323845365,-500.0,0.00022027,2]
[316005123,1709323845374,-500.0,0.00022027,2]
[316005124,1709323845383,-502.66291578,0.00022027,2]
[316005125,1709323845392,-500.0,0.00022027,2]
[316005126,1709323845402,-500.0,0.00022027,2]
[316005127,1709323845411,-500.0,0.00022027,2]
[316005128,1709323845420,-504.7779613,0.00022027,2]
[316005129,1709323845429,-500.0,0.00022027,2]
[316005130,1709323845438,-500.0,0.00022027,2]
[316005131,1709323845447,-500.0,0.00022027,2]
[316005132,1709323845456,-534.11,0.00022027,2]
[316005133,1709323845465,-500.0,0.00022027,2]
[316005134,1709323845474,-321.8961932,0.00022027,2]
[316005135,1709323845483,-504.62493516,0.00022027,2]
[316005136,1709323845493,-500.0,0.00022027,2]
[316005137,1709323845502,-549.38,0.00022027,2]
[316005138,1709323845510,-500.0,0.00022027,2]
[316005139,1709323845519,-500.0,0.00022027,2]
[316005140,1709323845529,-500.0,0.00022027,2]
[316005141,1709323845538,-508.03919628,0.00022027,2]
[316005142,1709323845548,-500.0,0.00022027,2]
[316005143,1709323845557,-500.0,0.00022027,2]
[316005144,1709323845567,-546.12,0.00022027,2]
[316005145,1709323845577,-500.0,0.00022027,2]
[316005146,1709323845587,-500.0,0.00022027,2]
[316005147,1709323845600,-500.0,0.00022027,2]
[316005148,1709323845611,-568.27694186,0.00022027,2]
[316005149,1709323845623,-500.0,0.00022027,2]
[316005150,1709323845632,-500.0,0.00022027,2]
[316005151,1709323845642,-500.0,0.00022027,2]
[316005152,1709323845651,-500.0,0.00022027,2]
[316005153,1709323845662,-500.0,0.00022027,2]
[316005154,1709323845672,-500.0,0.00022027,2]
[316005155,1709323845681,-500.0,0.00022027,2]
[316005156,1709323845692,-500.0,0.00022027,2]
[316005157,1709323845701,-500.0,0.00022027,2]
[316005158,1709323845711,-500.0,0.00022027,2]
[316005159,1709323845720,-500.0,0.00022027,2]
[316005160,1709323845729,-500.0,0.00022027,2]
[316005161,1709323845739,-151.0,0.00022027,7]
[316005162,1709323845749,-500.0,0.00022027,2]
[316005163,1709323845759,-500.0,0.00022027,2]
[316005164,1709323845768,-500.0,0.00022027,2]
[316005165,1709323845777,-500.0,0.00022027,2]
[316005166,1709323845786,-500.0,0.00022027,2]
[316005167,1709323845795,-500.0,0.00022027,2]
[316005168,1709323845805,-533.72,0.00022027,2]
[316005169,1709323845814,-500.0,0.00022027,2]
[316005170,1709323845823,-500.0,0.00022027,2]
[316005171,1709323845833,-494.153,0.00022027,2]
[316005172,1709323845842,-500.0,0.00022027,2]
[316005173,1709323845853,-500.0,0.00022027,2]
[316005174,1709323845863,-500.0,0.00022027,2]
[316005175,1709323845873,-751.59,0.00022027,2]
[316005176,1709323845882,-500.0,0.00022027,2]
[316005177,1709323845892,-500.0,0.00022027,2]
[316005178,1709323845902,-500.0,0.00022027,2]
[316005179,1709323845911,-500.0,0.00022027,2]
[316005180,1709323845921,-731.0,0.00022027,2]
[316005181,1709323845931,-899.85,0.00022027,2]
[316005182,1709323845940,-500.0,0.00022027,2]
[316005183,1709323845950,-666.88,0.00022027,2]
[316005184,1709323845959,-500.0,0.00022027,2]
[316005185,1709323845968,-500.0,0.00022027,2]
[316005186,1709323845978,-500.0,0.00022027,2]
[316005187,1709323845988,-500.0,0.00022027,2]
[316005188,1709323845998,-500.0,0.00022027,2]
[316005189,1709323846008,-565.86,0.00022027,2]
[316005190,1709323846018,-500.0,0.00022027,2]
[316005192,1709323846027,-670.76,0.00022027,2]
[316005193,1709323846037,-500.0,0.00022027,2]
[316005194,1709323846046,-500.0,0.00022027,2]
[316005195,1709323846055,-500.0,0.00022027,2]
[316005196,1709323846064,-500.0,0.00022027,2]
[316005198,1709323846073,-500.0,0.00022027,2]
[316005199,1709323846083,-500.0,0.00022027,2]
[316005200,1709323846092,-500.0,0.00022027,2]
[316005201,1709323846102,-500.0,0.00022027,2]
[316005202,1709323846111,-1145.41,0.00022027,2]
[316005203,1709323846121,-500.0,0.00022027,2]
[316005204,1709323846130,-500.0,0.00022027,2]
[316005205,1709323846139,-500.0,0.00022027,2]
[316005206,1709323846148,-500.0,0.00022027,2]
[316005207,1709323846159,-500.0,0.00022027,2]
[316005208,1709323846169,-500.0,0.00022027,2]
[316005209,1709323846178,-500.0,0.00022027,2]
[316005210,1709323846189,-500.0,0.00022027,2]
[316005211,1709323846198,-500.0,0.00022027,2]
[316005212,1709323846209,-500.0,0.00022027,2]
[316005213,1709323846218,-500.0,0.00022027,2]
[316005214,1709323846228,-500.0,0.00022027,2]
[316005215,1709323846237,-151.0,0.00022027,7]
[316005216,1709323846246,-500.0,0.00022027,2]
[316005217,1709323846256,-500.0,0.00022027,2]
[316005218,1709323846266,-500.0,0.00022027,2]
[316005219,1709323846275,-500.0,0.00022027,2]
[316005220,1709323846284,-500.0,0.00022027,2]
[316005221,1709323846293,-758.46,0.00022027,2]
[316005222,1709323846303,-500.0,0.00022027,2]
[316005223,1709323846312,-500.0,0.00022027,2]
[316005224,1709323846321,-500.0,0.00022027,2]
[316005225,1709323846330,-503.82667962,0.00022027,2]
[316005226,1709323846339,-1390.35,0.00022027,2]
[316005227,1709323846348,-500.0,0.00022027,2]
[316005228,1709323846357,-500.0,0.00022027,2]
[316005229,1709323846366,-500.0,0.00022027,2]
[316005230,1709323846375,-581.72,0.00022027,2]
[316005231,1709323846385,-500.0,0.00022027,2]
[316005232,1709323846394,-1002.89,0.00022027,2]
[316005233,1709323846403,-151.0,0.00022027,7]
[316005234,1709323846413,-500.0,0.00022027,2]
[316005235,1709323846422,-500.0,0.00022027,2]
[316005236,1709323846431,-500.0,0.00022027,2]
[316005237,1709323846440,-500.0,0.00022027,2]
[316005238,1709323846450,-500.0,0.00022027,2]
[316005239,1709323846459,-500.0,0.00022027,2]
[316005240,1709323846468,-500.0,0.00022027,2]
[316005241,1709323846478,-513.19,0.00022027,2]
[316005242,1709323846487,-500.0,0.00022027,2]
[316005243,1709323846495,-500.0,0.00022027,2]
[316005244,1709323846505,-500.0,0.00022027,2]
[316005245,1709323846514,-500.0,0.00022027,2]
[316005246,1709323846523,-500.0,0.00022027,2]
[316005247,1709323846533,-500.0,0.00022027,2]
[316005248,1709323846543,-500.0,0.00022027,2]
[316005249,1709323846552,-745.75,0.00022027,2]
[316005250,1709323846562,-500.0,0.00022027,2]
[316005251,1709323846571,-500.0,0.00022027,2]
[316005253,1709323846580,-500.0,0.00022027,2]
[316005254,1709323846590,-500.0,0.00022027,2]
[316005255,1709323846603,-500.0,0.00022027,2]
[316005256,1709323846613,-542.3120422,0.00022027,2]
[316005257,1709323846622,-500.0,0.00022027,2]
[316005258,1709323846631,-500.0,0.00022027,2]
[316005259,1709323846642,-500.0,0.00022027,2]
[316005260,1709323846651,-571.6,0.00022027,2]
[316005261,1709323846661,-500.0,0.00022027,2]
[316005262,1709323846670,-500.0,0.00022027,2]
[316005263,1709323846680,-500.0,0.00022027,2]
[316005264,1709323846690,-500.0,0.00022027,2]
[316005265,1709323846700,-500.0,0.00022027,2]
[316005266,1709323846710,-482.72249537,0.00022027,2]
[316005267,1709323846719,-500.0,0.00022027,2]
[316005268,1709323846729,-500.0,0.00022027,2]
[316005269,1709323846738,-500.0,0.00022027,2]
[316005270,1709323846747,-500.0,0.00022027,2]
[316005271,1709323846757,-595.37,0.00022027,2]
[316005272,1709323846766,-500.0,0.00022027,2]
[316005273,1709323846776,-523.55,0.00022027,2]
[316005274,1709323846786,-500.0,0.00022027,2]
[316005275,1709323846796,-500.0,0.00022027,2]
[316005276,1709323846806,-500.0,0.00022027,2]
[316005277,1709323846815,-500.0,0.00022027,2]
[316005278,1709323846824,-500.0,0.00022027,2]
[316005279,1709323846834,-500.0,0.00022027,2]
[316005280,1709323846843,-500.0,0.00022027,2]
[316005281,1709323846853,-500.0,0.00022027,2]
[316005282,1709323846862,-500.0,0.00022027,2]
[316005283,1709323846871,-500.0,0.00022027,2]
[316005284,1709323846881,-500.0,0.00022027,2]
[316005285,1709323846891,-500.0,0.00022027,2]
[316005286,1709323846901,-500.0,0.00022027,2]
[316005287,1709323846910,-854.6,0.00022027,2]
[316005288,1709323846920,-500.0,0.00022027,2]
[316005289,1709323846929,-500.0,0.00022027,2]
[316005290,1709323847090,-500.0,0.00022027,2]
[316005291,1709323847100,-500.0,0.00022027,2]
[316005292,1709323847109,-500.0,0.00022027,2]
[316005293,1709323847118,-500.0,0.00022027,2]
[316005294,1709323847127,-608.71690682,0.00022027,2]
[316005295,1709323847136,-500.0,0.00022027,2]
[316005296,1709323847146,-500.0,0.00022027,2]
[316005297,1709323847155,-541.66,0.00022027,2]
[316005298,1709323847164,-500.0,0.00022027,2]
[316005299,1709323847173,-500.0,0.00022027,2]
[316005300,1709323847182,-500.0,0.00022027,2]
[316005301,1709323847191,-500.0,0.00022027,2]
[316005302,1709323847200,-500.0,0.00022027,2]
[316005303,1709323847210,-161.86058826,0.00022027,2]
[316005304,1709323847219,-500.0,0.00022027,2]
[316005305,1709323847228,-500.0,0.00022027,2]
[316005306,1709323847238,-500.0,0.00022027,2]
[316005307,1709323847247,-500.0,0.00022027,2]
[316005308,1709323847256,-841.48,0.00022027,2]
[316005309,1709323847266,-500.0,0.00022027,2]
[316005310,1709323847275,-631.14,0.00022027,2]
[316005311,1709323847284,-500.0,0.00022027,2]
[316005312,1709323847293,-500.0,0.00022027,2]
[316005313,1709323847303,-500.0,0.00022027,2]
[316005314,1709323847312,-990.23,0.00022027,2]
[316005315,1709323847321,-562.05,0.00022027,2]
[316005316,1709323847330,-500.0,0.00022027,2]
[316005317,1709323847339,-507.32105046,0.00022027,2]
[316005318,1709323847348,-500.0,0.00022027,2]
[316005319,1709323847358,-500.0,0.00022027,2]
[316005320,1709323847367,-505.85447401,0.00022027,2]
[316005321,1709323847377,-500.0,0.00022027,2]
[316005322,1709323847386,-500.0,0.00022027,2]
[316005323,1709323847395,-508.04794181,0.00022027,2]
[316005324,1709323847405,-500.0,0.00022027,2]
[316005325,1709323847414,-500.0,0.00022027,2]
[316005326,1709323847423,-500.0,0.00022027,2]
[316005327,1709323847432,-500.0,0.00022027,2]
[316005328,1709323847441,-500.0,0.00022027,2]
[316005329,1709323847452,-500.0,0.00022027,2]
[316005330,1709323847461,-500.0,0.00022027,2]
[316005331,1709323847471,-500.0,0.00022027,2]
[316005332,1709323847480,-500.0,0.00022027,2]
[316005333,1709323847489,-841.55,0.00022027,2]
[316005334,1709323847499,-500.0,0.00022027,2]
[316005335,1709323847509,-500.0,0.00022027,2]
[316005336,1709323847518,-500.0,0.00022027,2]
[316005337,1709323847527,-500.0,0.00022027,2]
[316005338,1709323847537,-500.0,0.00022027,2]
[316005339,1709323847548,-500.0,0.00022027,2]
[316005340,1709323847559,-500.0,0.00022027,2]
[316005341,1709323847569,-500.0,0.00022027,2]
[316005342,1709323847579,-500.0,0.00022027,2]
[316005343,1709323847591,-500.0,0.00022027,2]
[316005344,1709323847606,-500.0,0.00022027,2]
[316005345,1709323847620,-500.0,0.00022027,2]
[316005346,1709323847631,-500.0,0.00022027,2]
[316005347,1709323847643,-500.0,0.00022027,2]
[316005348,1709323847652,-500.0,0.00022027,2]
[316005349,1709323847662,-500.0,0.00022027,2]
[316005350,1709323847672,-505.64470848,0.00022027,2]
[316005351,1709323847682,-500.0,0.00022027,2]
[316005352,1709323847693,-500.0,0.00022027,2]
[316005353,1709323847703,-500.0,0.00022027,2]
[316005354,1709323847713,-500.0,0.00022027,2]
[316005355,1709323847723,-500.0,0.00022027,2]
[316005356,1709323847734,-507.7135808,0.00022027,2]
[316005357,1709323847744,-500.0,0.00022027,2]
[316005358,1709323847754,-500.0,0.00022027,2]
[316005359,1709323847765,-500.0,0.00022027,2]
[316005360,1709323847775,-500.0,0.00022027,2]
[316005361,1709323847786,-500.0,0.00022027,2]
[316005362,1709323847797,-500.0,0.00022027,2]
[316005363,1709323847809,-500.0,0.00022027,2]
[316005364,1709323847821,-473.68889932,0.00022027,2]
[316005365,1709323847831,-500.0,0.00022027,2]
[316005366,1709323847842,-500.0,0.00022027,2]
[316005367,1709323847855,-500.0,0.00022027,2]
[316005368,1709323847867,-500.0,0.00022027,2]
[316005369,1709323847879,-521.34067934,0.00022027,2]
[316005370,1709323847889,-500.0,0.00022027,2]
[316005371,1709323847900,-500.0,0.00022027,2]
[316005372,1709323847910,-500.0,0.00022027,2]
[316005373,1709323847920,-500.0,0.00022027,2]
[316005374,1709323847929,-500.0,0.00022027,2]
[316005375,1709323847939,-500.0,0.00022027,2]
[316005376,1709323847949,-417.21,0.00022027,2]
[316005377,1709323847960,-541.83978741,0.00022027,2]
[316005378,1709323847970,-500.0,0.00022027,2]
[316005379,1709323847980,-500.0,0.00022027,2]
[316005380,1709323847990,-500.0,0.00022027,2]
[316005381,1709323848000,-500.0,0.00022027,2]
[316005382,1709323848010,-500.0,0.00022027,2]
[316005383,1709323848019,-500.0,0.00022027,2]
[316005384,1709323848028,-500.0,0.00022027,2]
[316005385,1709323848038,-500.0,0.00022027,2]
[316005386,1709323848048,-500.0,0.00022027,2]
[316005387,1709323848058,-548.41839734,0.00022027,2]
[316005388,1709323848069,-500.0,0.00022027,2]
[316005389,1709323848080,-570.15997112,0.00022027,2]
[316005390,1709323848092,-500.0,0.00022027,2]
[316005391,1709323848107,-1295.96,0.00022027,2]
[316005392,1709323848118,-631.14353124,0.00022027,2]
[316005393,1709323848128,-500.0,0.00022027,2]
[316005394,1709323848138,-500.0,0.00022027,2]
[316005395,1709323848147,-500.0,0.00022027,2]
[316005396,1709323848156,-500.0,0.00022027,2]